bitfinex/quotes_SOLUSD_20250814
["timestamp","ask_amount","ask_price","bid_price","bid_amount"]
[1755207637237,46.72994391,188.85,188.84,1e-08]
[1755207637546,26.0,188.82,188.78,0.2]
[1755207637843,36.71473608,188.79,188.78,0.2]
[1755207638150,79.95473608,188.79,188.78,0.2]
[1755207638836,69.24,188.79,188.78,0.2]
[1755207639025,115.2516268,188.79,188.78,0.2]
[1755207639627,85.2516268,188.79,188.78,0.2]
[1755207640327,74.53689072,188.79,188.78,0.2]
[1755207640525,85.2516268,188.79,188.78,0.2]
[1755207641025,85.9716268,188.79,188.78,0.2]
[1755207642736,115.9716268,188.79,188.78,0.2]
[1755207644551,89.35701588,188.79,188.78,0.2]
[1755207644937,10.0,188.77,188.76,0.03]
[1755207645137,93.95473608,188.77,188.76,0.03]
[1755207645340,88.06012516,188.77,188.76,0.03]
[1755207645850,93.35757708,188.77,188.76,0.03]
[1755207646030,82.642841,188.77,188.76,0.03]
[1755207646345,93.35757708,188.77,188.76,0.03]
[1755207646850,36.43774791,188.77,188.76,0.03]
[1755207647056,79.67774791,188.77,188.76,0.03]
[1755207647235,49.67774791,188.77,188.76,0.03]
[1755207647554,73.24,188.77,188.76,0.03]
[1755207647751,73.24,188.77,188.76,0.6]
[1755207647962,30.0,188.77,188.76,5.89773257]
[1755207648252,43.24,188.78,188.76,5.89773257]
[1755207648637,43.24,188.78,188.77,0.57]
[1755207649044,69.24,188.78,188.77,0.57]
[1755207650443,26.0,188.78,188.77,0.57]
[1755207650652,69.24,188.78,188.77,0.57]
[1755207651653,5.29492745,188.86,188.77,5.86745192]
[1755207651839,10.72124473,188.82,188.78,0.57]
[1755207652168,69.22,188.82,188.78,0.57]
[1755207652335,26.0,188.8,188.79,5.29689072]
[1755207653262,69.22,188.82,188.79,5.86689072]
[1755207653475,26.0,188.82,188.8,0.57]
[1755207653635,10.72124473,188.86,188.8,0.57]
[1755207653835,43.22,188.85,188.8,0.57]
[1755207654039,4.31835971,188.88,188.84,10.72124473]
[1755207654040,0.06,188.88,188.84,10.72124473]
[1755207654356,0.06,188.88,188.87,16.01589184]
[1755207654746,0.06,188.9,188.87,16.58589184]
[1755207654960,0.06,188.9,188.88,10.72124473]
[1755207655148,0.06,188.9,188.88,11.23124473]
[1755207655454,0.06,188.9,188.89,0.51]
[1755207655662,0.06,188.9,188.89,16.52533123]
[1755207656745,0.06,188.92,188.89,16.52533123]
[1755207656951,0.06,188.92,188.91,10.72124473]
[1755207657138,1e-08,188.92,188.91,10.72124473]
[1755207657465,0.06,188.94,188.91,10.72124473]
[1755207657466,1e-08,188.94,188.91,11.23124473]
[1755207657641,1e-08,188.94,188.93,10.72124473]
[1755207658038,1e-08,188.95,188.93,11.23124473]
[1755207658233,1e-08,188.95,188.94,11.23124473]
[1755207658435,1e-08,188.95,188.94,26.3374603]
[1755207658639,1e-08,188.97,188.96,26.0]
[1755207658839,1e-08,188.97,188.96,51.8274603]
[1755207659037,1e-08,188.97,188.96,52.3374603]
[1755207659239,43.2,189.07,189.0,26.0]
[1755207659466,8.03004123,189.11,189.0,36.72124473]
[1755207659675,0.06,189.13,189.07,5.28904638]
[1755207659839,26.0,189.11,189.07,16.01029111]
[1755207660049,26.0,189.11,189.08,0.51]
[1755207660248,10.78124473,189.13,189.07,5.28904638]
[1755207660452,36.78124473,189.13,189.07,5.28904638]
[1755207660668,36.78124473,189.13,189.07,16.52029111]
[1755207660880,26.06,189.13,189.07,16.52029111]
[1755207661082,10.78124473,189.13,189.07,0.51]
[1755207661265,10.72124473,189.09,188.93,10.0]
[1755207661576,10.72124473,189.06,189.01,0.51]
[1755207661777,10.72124473,189.06,189.01,5.80071136]
[1755207662158,10.72124473,189.07,189.01,5.80071136]
[1755207662361,10.72124473,189.08,189.01,0.51]
[1755207662793,10.72124473,189.08,189.01,11.23124473]
[1755207662974,10.72124473,189.08,188.96,0.51]
[1755207662975,10.72124473,189.02,188.96,0.51]
[1755207663151,10.72124473,189.02,188.94,10.72124473]
[1755207663152,10.72124473,189.0,188.94,10.72124473]
[1755207663460,36.72124473,189.05,188.98,10.72124473]
[1755207663662,0.67,189.06,189.0,10.72124473]
[1755207663980,43.14,189.07,189.0,10.72124473]
[1755207663981,79.86124473,189.07,189.0,10.72124473]
[1755207664186,10.72124473,189.06,188.99,16.01231636]
[1755207664686,10.72124473,189.05,188.99,5.29107163]
[1755207664979,10.72124473,189.05,188.98,11.23124473]
[1755207664980,10.72124473,189.03,188.98,5.80156279]
[1755207665164,10.72124473,189.03,188.96,11.23124473]
[1755207665481,11.39124473,189.03,188.96,11.23124473]
[1755207665678,11.39124473,189.03,188.96,16.52334034]
[1755207666069,0.67,189.03,188.97,10.72124473]
[1755207666659,0.67,189.03,188.96,5.80209561]
[1755207666858,11.39124473,189.03,188.96,16.52334034]
[1755207667474,10.72124473,189.0,188.95,5.29237165]
[1755207667678,43.79,189.02,188.93,11.23124473]
[1755207667861,0.67,189.01,188.93,0.51]
[1755207668060,10.72124473,188.98,188.93,0.51]
[1755207668475,36.72124473,188.99,188.93,0.51]
[1755207668786,10.72124473,188.98,188.93,0.51]
[1755207669364,10.72124473,188.98,188.92,5.29324581]
[1755207669685,10.72124473,188.98,188.92,16.01449054]
[1755207669865,10.72124473,188.98,188.92,5.29324581]
[1755207670269,10.72124473,188.97,188.88,26.0]
[1755207670470,10.72124473,188.96,188.9,11.23124473]
[1755207670776,10.72124473,188.94,188.88,16.01560099]
[1755207670962,10.72124473,188.93,188.88,5.29435626]
[1755207671163,0.67,188.95,188.87,5.80463284]
[1755207671471,10.72124473,188.94,188.87,16.52587757]
[1755207671671,10.72124473,188.93,188.87,16.52587757]
[1755207672387,10.72124473,188.9,188.85,5.29496419]
[1755207672565,10.72124473,188.88,188.82,5.80604914]
[1755207672761,10.72124473,188.88,188.82,16.52729387]
[1755207672968,10.72124473,188.87,188.8,16.52774172]
[1755207673165,10.72124473,188.87,188.8,5.80649699]
[1755207673166,10.72124473,188.86,188.8,5.80649699]
[1755207673463,10.72124473,188.86,188.76,0.03]
[1755207673464,10.72124473,188.84,188.77,5.80745192]
[1755207673664,10.72124473,188.82,188.77,5.29745192]
[1755207673865,10.72124473,188.78,188.76,0.03]
[1755207674082,0.67,188.81,188.72,0.03]
[1755207674083,26.0,188.74,188.72,0.03]
[1755207674261,11.39124473,188.73,188.72,0.03]
[1755207675368,16.68981941,188.73,188.72,0.03]
[1755207675570,11.39124473,188.73,188.72,0.03]
[1755207676175,0.67,188.73,188.72,0.03]
[1755207676379,26.0,188.79,188.72,0.03]
[1755207676588,26.0,188.79,188.72,11.32124473]
[1755207676589,10.72124473,188.79,188.72,11.32124473]
[1755207676898,0.67,188.83,188.76,10.72124473]
[1755207677189,10.72124473,188.84,188.75,0.57]
[1755207677363,10.72124473,188.84,188.77,10.72124473]
[1755207677566,10.72124473,188.84,188.78,18.54009958]
[1755207677763,53.82124473,188.85,188.78,29.26134431]
[1755207677968,43.1,188.85,188.79,10.72124473]
[1755207678675,43.1,188.85,188.79,15.70329714]
[1755207679069,43.1,188.85,188.8,18.53813558]
[1755207679477,43.77,188.85,188.8,18.53813558]
[1755207680298,43.1,188.85,188.8,18.53813558]
[1755207680504,5.25442019,188.9,188.8,18.53813558]
[1755207680505,5.25442019,188.9,188.82,15.70329714]
[1755207680702,15.70329714,188.91,188.84,15.70329714]
[1755207680867,58.80329714,188.91,188.84,15.70329714]
[1755207681501,0.67,188.94,188.84,16.27329714]
[1755207681687,58.80329714,188.93,188.85,15.70329714]
[1755207681879,58.80329714,188.93,188.84,0.57]
[1755207681880,58.80329714,188.93,188.86,15.70329714]
[1755207682574,58.80329714,188.93,188.81,15.10621557]
[1755207682575,15.70329714,188.91,188.85,5.29520783]
[1755207682901,15.70329714,188.86,188.77,5.29745192]
[1755207683106,15.70329714,188.84,188.77,21.00074906]
[1755207683267,15.70329714,188.84,188.78,26.0]
[1755207683986,15.70329714,188.84,188.79,18.53911753]
[1755207684184,15.70329714,188.8,188.79,5.29689072]
[1755207684399,16.37329714,188.8,188.79,5.29689072]
[1755207684904,16.37329714,188.8,188.73,0.57]
[1755207685202,43.75,188.8,188.73,5.29857468]
[1755207685383,43.75,188.8,188.72,0.03]
[1755207685384,15.70329714,188.74,188.72,0.03]
[1755207685699,58.78329714,188.73,188.72,0.03]
[1755207685872,26.0,188.71,188.7,0.03]
[1755207686068,41.70329714,188.71,188.7,0.03]
[1755207686300,42.37329714,188.71,188.7,0.03]
[1755207688897,16.37329714,188.71,188.7,0.03]
[1755207689095,15.70329714,188.71,188.7,0.03]
[1755207690697,15.70329714,188.72,188.7,0.03]
[1755207690901,15.70329714,188.71,188.7,0.03]
[1755207691303,15.70329714,188.75,188.7,0.03]
[1755207691480,43.08,188.75,188.71,15.70329714]
[1755207691679,43.08,188.75,188.7,0.63]
[1755207691982,43.08,188.75,188.7,16.33329714]
[1755207692179,43.08,188.75,188.71,15.70329714]
[1755207692403,43.08,188.75,188.72,15.70329714]
[1755207692904,0.5,188.74,188.72,15.70329714]
[1755207693109,0.5,188.74,188.72,16.30329714]
[1755207693279,0.5,188.74,188.73,21.00187182]
[1755207693613,0.06,188.78,188.73,34.24830852]
[1755207693976,0.06,188.78,188.74,0.6]
[1755207694179,0.06,188.76,188.74,15.70329714]
[1755207695385,0.06,188.76,188.75,21.60131038]
[1755207695606,0.06,188.78,188.75,21.60131038]
[1755207695783,0.06,188.78,188.77,15.70329714]
[1755207696183,0.06,188.78,188.76,16.30329714]
[1755207696487,0.06,188.78,188.76,15.70329714]
[1755207697406,0.06,188.78,188.77,5.29745192]
[1755207697783,0.74,188.78,188.77,5.29745192]
[1755207700114,43.78,188.78,188.74,5.29829394]
[1755207700309,43.1,188.78,188.74,5.29829394]
[1755207700611,15.70329714,188.75,188.68,0.2]
[1755207700795,15.70329714,188.71,188.68,0.2]
[1755207701187,16.38329714,188.71,188.68,0.2]
[1755207702015,0.68,188.71,188.68,0.2]
[1755207702188,16.38329714,188.71,188.68,0.2]
[1755207708316,26.0,188.69,188.68,0.2]
[1755207708518,84.70329714,188.69,188.66,0.03]
[1755207708693,26.0,188.65,188.64,0.03]
[1755207708894,84.68329714,188.65,188.64,0.03]
[1755207709089,85.36329714,188.65,188.64,0.03]
[1755207709323,90.66411876,188.65,188.64,0.03]
[1755207710834,85.36329714,188.65,188.64,0.03]
[1755207711126,90.66411876,188.65,188.64,0.03]
[1755207712713,120.66411876,188.65,188.64,0.03]
[1755207713710,77.68411876,188.65,188.64,0.03]
[1755207713930,120.64411876,188.65,188.64,0.03]
[1755207714422,30.0,188.65,188.64,0.03]
[1755207714617,66.74011672,188.65,188.64,0.03]
[1755207714921,37.92011672,188.65,188.64,0.03]
[1755207715300,43.22093834,188.65,188.64,0.03]
[1755207715500,60.18093834,188.65,188.64,0.03]
[1755207716400,90.18093834,188.65,188.64,0.03]
[1755207717809,60.18093834,188.65,188.64,0.03]
[1755207718907,26.0,188.63,188.62,0.03]
[1755207719111,26.0,188.63,188.57,0.03]
[1755207719112,83.06036048,188.63,188.57,0.03]
[1755207719344,10.74011672,188.58,188.57,0.03]
[1755207719542,53.68011672,188.58,188.57,0.03]
[1755207719706,54.36011672,188.58,188.57,0.03]
[1755207719912,54.36011672,188.58,188.55,0.03]
[1755207719913,26.0,188.56,188.55,0.03]
[1755207720141,90.42023344,188.56,188.47,0.71]
[1755207720325,10.74011672,188.54,188.47,0.71]
[1755207720523,53.68011672,188.54,188.42,13.92779968]
[1755207720710,54.39011672,188.54,188.46,5.30615302]
[1755207720912,54.39011672,188.54,188.45,5.30644733]
[1755207720913,59.694031,188.54,188.45,5.30644733]
[1755207721350,59.694031,188.54,188.46,0.66]
[1755207722026,54.39011672,188.54,188.46,0.66]
[1755207722316,5.31528149,188.54,188.53,0.69]
[1755207722526,30.0,188.54,188.53,0.03]
[1755207722717,53.66011672,188.56,188.53,0.69]
[1755207722923,42.92,188.56,188.53,0.69]
[1755207723144,53.66011672,188.56,188.54,5.96391428]
[1755207723313,48.26965859,188.56,188.54,5.96391428]
[1755207723508,59.00977531,188.56,188.54,5.96391428]
[1755207723813,59.00977531,188.56,188.54,5.30391428]
[1755207723814,48.26965859,188.56,188.54,5.30391428]
[1755207724017,5.34965859,188.56,188.55,0.66]
[1755207724329,42.92,188.58,188.55,0.66]
[1755207724527,5.29350937,188.58,188.55,0.66]
[1755207724836,42.92,188.6,188.56,0.66]
[1755207725014,0.5,188.65,188.59,18.55877829]
[1755207725341,0.5,188.65,188.6,11.40011672]
[1755207725549,0.5,188.65,188.61,10.74011672]
[1755207725727,0.5,188.65,188.62,10.74011672]
[1755207726111,0.5,188.65,188.63,0.66]
[1755207726329,0.5,188.65,188.64,0.66]
[1755207727344,0.5,188.65,188.64,5.96110262]
[1755207732729,16.23001492,188.65,188.59,5.30250808]
[1755207732935,15.73001492,188.6,188.54,5.30391428]
[1755207733172,15.73001492,188.56,188.54,5.30391428]
[1755207733672,15.73001492,188.56,188.53,0.03]
[1755207733673,15.73001492,188.57,188.53,5.33414796]
[1755207733847,15.73001492,188.57,188.53,0.03]
[1755207734043,15.73001492,188.56,188.53,0.03]
[1755207734238,42.84,188.55,188.53,0.03]
[1755207734454,15.73001492,188.54,188.53,0.03]
[1755207734650,42.84,188.55,188.53,0.03]
[1755207735845,42.84,188.58,188.53,0.03]
[1755207736261,26.0,188.55,188.53,0.03]
[1755207736554,58.57001492,188.54,188.53,0.03]
[1755207736754,59.28001492,188.54,188.53,0.03]
[1755207737258,43.55,188.54,188.53,0.03]
[1755207737458,59.28001492,188.54,188.53,0.03]
[1755207737777,48.85391428,188.54,188.53,0.03]
[1755207737947,59.28001492,188.54,188.53,0.03]
[1755207738276,43.55,188.54,188.53,0.03]
[1755207738634,59.28001492,188.54,188.53,0.03]
[1755207738837,89.28001492,188.54,188.53,0.03]
[1755207739868,73.55,188.54,188.53,0.03]
[1755207740067,89.28001492,188.54,188.53,0.03]
[1755207740272,94.5839292,188.54,188.53,0.03]
[1755207740839,26.0,188.52,188.51,0.03]
[1755207741041,41.73001492,188.52,188.51,0.03]
[1755207741240,72.44001492,188.52,188.51,0.03]
[1755207741437,56.71,188.52,188.51,0.03]
[1755207741680,30.0,188.52,188.51,0.03]
[1755207741839,42.84,188.58,188.51,0.69]
[1755207742039,0.06,188.6,188.57,15.73001492]
[1755207742242,0.06,188.6,188.58,0.66]
[1755207742537,0.06,188.6,188.59,15.73001492]
[1755207742773,0.06,188.6,188.59,16.39001492]
[1755207743081,0.06,188.6,188.59,0.66]
[1755207743272,0.06,188.6,188.59,16.39001492]
[1755207743696,1e-08,188.62,188.61,46.40816138]
[1755207744012,0.06,188.72,188.62,15.10621557]
[1755207744170,0.06,188.72,188.7,15.73001492]
[1755207744708,0.06,188.72,188.61,18.55681034]
[1755207744709,0.06,188.72,188.71,0.66]
[1755207744903,0.06,188.72,188.71,16.39001492]
[1755207745106,0.06,188.72,188.71,0.66]
[1755207745600,0.06,188.72,188.7,15.73001492]
[1755207745981,0.06,188.72,188.69,0.66]
[1755207745982,0.06,188.72,188.71,15.73001492]
[1755207746196,0.06,188.72,188.71,16.39001492]
[1755207746492,0.06,188.72,188.69,15.73001492]
[1755207747865,0.06,188.72,188.7,15.73001492]
[1755207748289,0.06,188.72,188.68,69.5]
[1755207748492,0.06,188.72,188.68,59.23001492]
[1755207748696,0.06,188.72,188.68,43.5]
[1755207748918,0.06,188.72,188.68,42.84]
[1755207749089,0.06,188.72,188.66,15.73001492]
[1755207749790,5.35885544,188.72,188.64,16.39001492]
[1755207749995,21.08887036,188.72,188.64,0.66]
[1755207750167,5.35885544,188.72,188.64,0.66]
[1755207750373,21.08887036,188.72,188.65,15.73001492]
[1755207750601,5.35885544,188.72,188.64,16.39001492]
[1755207750800,15.73001492,188.7,188.63,15.73001492]
[1755207751407,69.5,188.69,188.56,16.41001492]
[1755207751572,15.73001492,188.61,188.56,0.68]
[1755207751768,5.30194581,188.61,188.55,15.73001492]
[1755207751974,21.03196073,188.61,188.56,26.0]
[1755207752207,31.98194581,188.61,188.53,0.71]
[1755207752372,15.73001492,188.56,188.53,0.03]
[1755207752572,42.82,188.57,188.53,0.03]
[1755207752876,15.73001492,188.54,188.53,0.03]
[1755207753392,15.73001492,188.54,188.53,1e-08]
[1755207753393,20.67043478,188.54,188.53,1e-08]
[1755207753704,16.41001492,188.54,188.53,1e-08]
[1755207753908,21.7139292,188.54,188.53,1e-08]
[1755207754199,47.7139292,188.54,188.53,1e-08]
[1755207754400,21.7139292,188.54,188.53,1e-08]
[1755207754697,16.41001492,188.54,188.53,1e-08]
[1755207754900,26.0,188.54,188.53,1e-08]
[1755207756803,15.73001492,188.54,188.53,1e-08]
[1755207756982,41.73001492,188.55,188.53,1e-08]
[1755207757777,26.0,188.55,188.53,1e-08]
[1755207758399,41.73001492,188.55,188.53,1e-08]
[1755207758710,0.68,188.54,188.53,1e-08]
[1755207758888,16.41001492,188.54,188.53,1e-08]
[1755207760206,26.0,188.55,188.53,1e-08]
[1755207760411,15.73001492,188.56,188.53,1e-08]
[1755207761494,26.0,188.55,188.53,1e-08]
[1755207762912,15.73001492,188.57,188.53,1e-08]
[1755207763409,42.82,188.58,188.53,0.68000001]
[1755207763618,16.41001492,188.61,188.54,16.41001492]
[1755207763821,0.68,188.64,188.56,15.73001492]
[1755207764029,0.68,188.64,188.55,18.56271545]
[1755207764030,30.68,188.68,188.6,15.73001492]
[1755207764309,30.68,188.68,188.61,15.73001492]
[1755207764310,45.73001492,188.68,188.61,15.73001492]
[1755207764512,15.73001492,188.69,188.62,15.73001492]
[1755207764686,15.73001492,188.69,188.6,0.68]
[1755207764687,42.84,188.71,188.64,15.73001492]
[1755207764885,15.73001492,188.71,188.65,0.68]
[1755207765192,0.06,188.72,188.62,16.41001492]
[1755207765193,15.73001492,188.69,188.62,16.41001492]
[1755207765395,15.73001492,188.67,188.6,26.0]
[1755207765593,15.73001492,188.65,188.6,26.0]
[1755207765914,15.73001492,188.64,188.6,5.30222693]
[1755207766215,26.0,188.67,188.6,5.30222693]
[1755207766525,15.73001492,188.66,188.6,18.55779426]
[1755207766822,0.5,188.63,188.6,18.55779426]
[1755207766995,0.5,188.63,188.61,16.41001492]
[1755207767306,0.5,188.63,188.62,15.73001492]
[1755207767511,26.68,188.69,188.63,15.73001492]
[1755207767683,0.68,188.69,188.63,15.73001492]
[1755207767885,42.84,188.7,188.65,15.73001492]
[1755207768105,0.06,188.72,188.66,15.73001492]
[1755207768295,0.06,188.72,188.68,15.73001492]
[1755207768887,0.06,188.72,188.66,0.68]
[1755207769090,0.06,188.72,188.68,15.73001492]
[1755207769499,0.06,188.72,188.69,16.41001492]
[1755207769909,0.06,188.72,188.7,5.29941706]
[1755207770115,0.06,188.72,188.7,21.02943198]
[1755207770314,0.06,188.72,188.71,16.41001492]
[1755207770513,0.06,188.72,188.71,16.93992854]
[1755207770514,1e-08,188.72,188.71,16.93992854]
[1755207770715,0.06,188.78,188.71,16.93992854]
[1755207771020,0.06,188.78,188.76,15.73001492]
[1755207771390,0.06,188.78,188.73,15.10621557]
[1755207771391,0.06,188.78,188.75,15.73001492]
[1755207771616,0.06,188.78,188.76,15.73001492]
[1755207771911,0.06,188.78,188.77,5.29745192]
[1755207774399,0.06,188.78,188.74,18.54360913]
[1755207774819,0.68,188.77,188.74,5.29829394]
[1755207774998,15.73001492,188.75,188.64,15.73001492]
[1755207775191,41.78621557,188.74,188.65,5.30082162]
[1755207775393,15.73001492,188.72,188.65,18.55287568]
[1755207775615,42.8,188.71,188.65,5.30082162]
[1755207775818,58.53001492,188.71,188.65,5.30082162]
[1755207776201,15.73001492,188.7,188.65,5.30082162]
[1755207776401,0.68,188.69,188.62,18.55568595]
[1755207776904,15.78621557,188.73,188.63,0.68]
[1755207777106,58.53001492,188.72,188.64,15.73001492]
[1755207777629,42.8,188.72,188.64,15.73001492]
[1755207777804,42.8,188.72,188.66,15.73001492]
[1755207778623,42.8,188.72,188.67,18.55090899]
[1755207778954,26.0,188.74,188.67,19.23090899]
[1755207779227,42.8,188.76,188.7,15.73001492]
[1755207779626,42.8,188.76,188.72,15.73001492]
[1755207780221,42.8,188.76,188.7,26.0]
[1755207780729,42.8,188.76,188.73,5.29857468]
[1755207781146,0.06,188.78,188.73,18.54501138]
[1755207781346,0.78,188.78,188.73,18.54501138]
[1755207782144,0.06,188.78,188.73,18.54501138]
[1755207782520,0.78,188.78,188.73,13.2464367]
[1755207782732,0.06,188.78,188.73,13.2464367]
[1755207783646,0.06,188.78,188.73,18.54501138]
[1755207784242,1e-08,188.8,188.77,15.73001492]
[1755207784550,1e-08,188.8,188.79,15.73001492]
[1755207785753,1e-08,188.8,188.79,21.02690564]
[1755207786050,1e-08,188.8,188.79,5.29689072]
[1755207787531,1e-08,188.8,188.79,21.02690564]
[1755207789123,1e-08,188.8,188.79,21.69690564]
[1755207790346,1e-08,188.82,188.81,26.0]
[1755207790541,0.1,188.84,188.82,15.10621557]
[1755207790542,1e-08,188.84,188.82,15.10621557]
[1755207790846,1e-08,188.84,188.83,31.36580735]
[1755207791035,1e-08,188.84,188.83,32.03580735]
[1755207791846,1e-08,188.84,188.83,37.33157603]
[1755207792050,1e-08,188.88,188.86,26.0]
[1755207792346,1e-08,188.88,188.87,15.73001492]
[1755207792533,1e-08,188.88,188.87,16.40001492]
[1755207793247,1e-08,188.88,188.87,31.50623049]
[1755207793848,1e-08,188.88,188.87,36.8008776]
[1755207796123,1e-08,188.88,188.87,21.07086268]
[1755207796431,1e-08,188.88,188.87,36.8008776]
[1755207798656,1e-08,188.88,188.87,31.77030775]
[1755207802154,1e-08,188.88,188.87,31.10030775]
[1755207802936,1e-08,188.88,188.87,41.99409218]
[1755207805136,0.72000001,188.88,188.87,41.99409218]
[1755207805339,1e-08,188.88,188.87,41.99409218]
[1755207806262,0.72000001,188.88,188.87,41.99409218]
[1755207807267,1e-08,188.88,188.87,15.99409218]
[1755207808053,0.72000001,188.88,188.87,15.99409218]
[1755207808858,0.72000001,188.88,188.87,16.02409218]
[1755207810162,0.72000001,188.88,188.87,5.32464711]
[1755207810343,0.72000001,188.88,188.87,16.02409218]
[1755207811073,1e-08,188.88,188.87,16.02409218]
[1755207811639,1e-08,188.88,188.87,5.32464711]
[1755207811839,1e-08,188.88,188.87,16.02409218]
[1755207814176,1e-08,188.9,188.89,26.0]
[1755207814471,0.06,188.92,188.89,36.69944507]
[1755207814774,0.06,188.92,188.91,10.69944507]
[1755207815076,0.06,188.92,188.9,26.68]
[1755207815248,0.06,188.92,188.9,26.0]
[1755207815568,0.06,188.92,188.91,10.69944507]
[1755207816375,0.06,188.92,188.91,15.99297108]
[1755207817163,0.76,188.92,188.91,5.29352601]
[1755207819794,0.76,188.92,188.91,15.99297108]
[1755207820883,0.06,188.92,188.91,15.99297108]
[1755207821402,0.06,188.92,188.91,42.67297108]
[1755207822066,0.06,188.94,188.91,42.67297108]
[1755207822270,0.06,188.94,188.93,10.69944507]
[1755207823984,0.06,188.94,188.93,15.99241071]
[1755207825482,0.7,189.0,188.96,26.0]
[1755207825683,0.7,188.99,188.97,10.69944507]
[1755207827076,0.7,188.99,188.98,5.29156524]
[1755207827971,0.7,189.01,188.98,5.29156524]
[1755207828172,0.7,189.0,188.97,5.29184526]
[1755207828392,0.7,188.99,188.97,15.99129033]
[1755207828688,53.33944507,189.04,188.97,15.99129033]
[1755207828887,0.7,189.01,188.97,15.99129033]
[1755207829096,0.7,189.0,188.97,5.29184526]
[1755207829794,0.7,188.99,188.97,5.29184526]
[1755207830297,0.7,189.01,188.97,5.29184526]
[1755207830494,0.7,189.0,188.97,5.29184526]
[1755207830704,0.7,189.0,188.97,15.99129033]
[1755207830902,0.7,189.0,188.96,26.0]
[1755207830903,0.7,189.0,188.96,36.69944507]
[1755207831278,0.7,189.0,188.96,26.0]
[1755207831473,0.7,189.0,188.96,36.69944507]
[1755207831989,0.7,189.0,188.89,0.03]
[1755207832201,0.7,189.0,188.94,10.69944507]
[1755207832798,0.7,189.0,188.92,41.78621557]
[1755207833098,0.7,189.0,188.95,10.69944507]
[1755207833485,0.7,189.0,188.98,26.0]
[1755207834206,16.00172407,189.04,188.98,26.0]
[1755207834402,0.7,189.02,188.98,26.0]
[1755207834898,0.7,189.02,188.98,10.69944507]
[1755207835805,5.302279,189.04,189.0,10.69944507]
[1755207835984,0.06,189.05,189.0,10.69944507]
[1755207836189,0.76,189.05,189.0,10.69944507]
[1755207836700,0.7,189.04,189.0,10.69944507]
[1755207837093,0.7,189.04,189.01,10.69944507]
[1755207837392,0.06,189.05,189.01,10.69944507]
[1755207837592,5.44437198,189.05,189.01,10.69944507]
[1755207837906,0.06,189.05,188.99,0.68]
[1755207838209,0.06,189.05,189.02,26.0]
[1755207838380,0.06,189.05,189.04,10.69944507]
[1755207838780,0.06,189.05,189.04,6.41099364]
[1755207839610,0.06,189.05,189.03,6.41099364]
[1755207840983,0.06,189.05,189.02,26.0]
[1755207841189,0.06,189.05,189.03,6.41099364]
[1755207841933,0.06,189.05,189.02,26.71]
[1755207842090,0.06,189.05,189.04,6.41099364]
[1755207842603,0.06,189.05,189.04,7.12099364]
[1755207842801,0.06,189.05,189.04,6.41099364]
[1755207843333,0.06,189.05,189.02,26.71]
[1755207843503,0.06,189.05,189.04,6.41099364]
[1755207845023,0.06,189.05,189.03,6.41099364]
[1755207845393,0.06,189.05,189.02,26.0]
[1755207845621,0.06,189.05,189.03,6.41099364]
[1755207847416,0.06,189.05,189.02,32.41099364]
[1755207848316,0.06,189.05,189.02,6.41099364]
[1755207848523,0.06,189.05,189.03,6.41099364]
[1755207849527,0.06,189.05,189.02,6.41099364]
[1755207849826,0.74,189.05,189.02,6.41099364]
[1755207849996,0.06,189.05,189.03,6.41099364]
[1755207850199,0.06,189.05,189.04,26.0]
[1755207850397,0.06,189.05,189.02,0.71]
[1755207850599,0.06,189.05,189.04,26.0]
[1755207850807,0.06,189.05,189.03,32.41099364]